[Event "Titled Tuesday Blitz September 27 Early 2022"]
[White "Kovacevic, Radmila"]
[Black "Dmitrenko, Viktor"]
[WhiteFideId "933171"]
[BlackFideId "14110270"]
[WhiteElo "2208"]
[BlackElo "2235"]
[Result "0-1"]
[Round "10"]
[TimeControl "180+1"]
[Date "2022.09.27"]
[WhiteClock "0:00:18"]
[BlackClock "0:00:40"]

1. d4 {[%clk 0:02:56]}  Nf6 {[%clk 0:02:59]} 2. c4 {[%clk 0:02:56]}  e6 {[%clk 0:02:59]} 3. Nc3 {[%clk 0:02:56]}  Bb4 {[%clk 0:02:58]} 4. a3 {[%clk 0:02:53]}  Bxc3+ {[%clk 0:02:57]} 5. bxc3 {[%clk 0:02:54]}  d5 {[%clk 0:02:56]} 6. c5 {[%clk 0:02:52]}  O-O {[%clk 0:02:54]} 7. Bg5 {[%clk 0:02:47]}  b6 {[%clk 0:02:53]} 8. cxb6 {[%clk 0:02:35]}  axb6 {[%clk 0:02:54]} 9. e3 {[%clk 0:02:29]}  h6 {[%clk 0:02:52]} 10. Bh4 {[%clk 0:02:28]}  Nbd7 {[%clk 0:02:51]} 11. f4 {[%clk 0:02:22]}  Qe7 {[%clk 0:02:45]} 12. Qc1 {[%clk 0:02:17]}  Qd6 {[%clk 0:02:44]} 13. Nf3 {[%clk 0:02:16]}  Ba6 {[%clk 0:02:37]} 14. Ne5 {[%clk 0:02:09]}  Ne4 {[%clk 0:02:34]} 15. Bxa6 {[%clk 0:02:00]}  Rxa6 {[%clk 0:02:33]} 16. O-O {[%clk 0:01:59]}  Nxe5 {[%clk 0:02:28]} 17. fxe5 {[%clk 0:01:58]}  Qc6 {[%clk 0:02:28]} 18. Be1 {[%clk 0:01:52]}  f5 {[%clk 0:02:14]} 19. exf6 {[%clk 0:01:50]}  Rxf6 {[%clk 0:02:13]} 20. Rxf6 {[%clk 0:01:47]}  Nxf6 {[%clk 0:02:14]} 21. Rb1 {[%clk 0:01:40]}  Ne4 {[%clk 0:02:06]} 22. Rb2 {[%clk 0:01:24]}  Qa4 {[%clk 0:01:47]} 23. Ra2 {[%clk 0:01:08]}  Qb3 {[%clk 0:01:41]} 24. Qa1 {[%clk 0:01:03]}  b5 {[%clk 0:01:32]} 25. h3 {[%clk 0:01:01]}  c6 {[%clk 0:01:28]} 26. Kh2 {[%clk 0:00:56]}  Ra8 {[%clk 0:01:22]} 27. Kg1 {[%clk 0:00:54]}  Rf8 {[%clk 0:01:02]} 28. Rb2 {[%clk 0:00:49]}  Qc4 {[%clk 0:01:01]} 29. Rf2 {[%clk 0:00:43]}  Nxf2 {[%clk 0:00:58]} 30. Bxf2 {[%clk 0:00:44]}  Qe2 {[%clk 0:00:57]} 31. Qe1 {[%clk 0:00:42]}  Qxe1+ {[%clk 0:00:56]} 32. Bxe1 {[%clk 0:00:42]}  Ra8 {[%clk 0:00:57]} 33. Kf2 {[%clk 0:00:40]}  Rxa3 {[%clk 0:00:57]} 34. Ke2 {[%clk 0:00:40]}  Ra2+ {[%clk 0:00:56]} 35. Bd2 {[%clk 0:00:38]}  Kf7 {[%clk 0:00:56]} 36. Kd3 {[%clk 0:00:34]}  e5 {[%clk 0:00:57]} 37. g4 {[%clk 0:00:25]}  e4+ {[%clk 0:00:54]} 38. Ke2 {[%clk 0:00:24]}  g5 {[%clk 0:00:53]} 39. Kd1 {[%clk 0:00:22]}  Ke6 {[%clk 0:00:53]} 40. Ke1 {[%clk 0:00:20]}  Ra1+ {[%clk 0:00:52]} 41. Kf2 {[%clk 0:00:20]}  Rd1 {[%clk 0:00:51]} 42. Ke2 {[%clk 0:00:19]}  Rh1 {[%clk 0:00:50]} 43. Be1 {[%clk 0:00:19]}  Rxh3 {[%clk 0:00:49]} 44. Bf2 {[%clk 0:00:19]}  Rf3 {[%clk 0:00:45]} 45. Kf1 {[%clk 0:00:18]}  Kf7 {[%clk 0:00:44]} 46. Kg2 {[%clk 0:00:18]}  Kg6 {[%clk 0:00:44]} 47. Kg1 {[%clk 0:00:18]}  h5 {[%clk 0:00:43]} 48. gxh5+ {[%clk 0:00:19]}  Kxh5 {[%clk 0:00:44]} 49. Kg2 {[%clk 0:00:19]}  Kg4 {[%clk 0:00:44]} 50. Bg1 {[%clk 0:00:19]}  Rf7 {[%clk 0:00:43]} 51. Bf2 {[%clk 0:00:19]}  Ra7 {[%clk 0:00:42]} 52. Be1 {[%clk 0:00:19]}  Ra2+ {[%clk 0:00:41]} 53. Kf1 {[%clk 0:00:19]}  Kf3 {[%clk 0:00:40]} 54. Kg1 {[%clk 0:00:17]}  g4 {[%clk 0:00:40]} 55. Kf1 {[%clk 0:00:18]}  Ra1 {[%clk 0:00:39]} 56. c4 {[%clk 0:00:17]}  bxc4 {[%clk 0:00:39]} 57. Kg1 {[%clk 0:00:17]}  Rxe1+ {[%clk 0:00:39]} 58. Kh2 {[%clk 0:00:18]}  g3+ {[%clk 0:00:39]} 59. Kh3 {[%clk 0:00:18]}  Rh1# {[%clk 0:00:40]} 0-1


[Site "https://www.chess.com"]

[Event "Titled Tuesday Blitz September 27 Early 2022"]
[White "Kukula, Pawel"]
[Black "Narayanan, Srinath"]
[WhiteFideId "1115081"]
[BlackFideId "5018420"]
[WhiteElo "2062"]
[BlackElo "2459"]
[Result "0-1"]
[Round "10"]
[TimeControl "180+1"]
[Date "2022.09.27"]
[WhiteClock "0:00:02"]
[BlackClock "0:01:42"]

1. c4 {[%clk 0:03:00]}  e5 {[%clk 0:02:59]} 2. Nc3 {[%clk 0:03:00]}  Nc6 {[%clk 0:02:58]} 3. g3 {[%clk 0:03:00]}  g6 {[%clk 0:02:59]} 4. Bg2 {[%clk 0:03:00]}  Bg7 {[%clk 0:03:00]} 5. Rb1 {[%clk 0:03:00]}  Nge7 {[%clk 0:02:57]} 6. b4 {[%clk 0:02:59]}  d6 {[%clk 0:02:58]} 7. b5 {[%clk 0:02:59]}  Nd4 {[%clk 0:02:58]} 8. e3 {[%clk 0:02:58]}  Ne6 {[%clk 0:02:58]} 9. Nge2 {[%clk 0:02:57]}  h5 {[%clk 0:02:58]} 10. h4 {[%clk 0:02:54]}  O-O {[%clk 0:02:58]} 11. d3 {[%clk 0:02:55]}  a6 {[%clk 0:02:56]} 12. a4 {[%clk 0:02:55]}  axb5 {[%clk 0:02:56]} 13. axb5 {[%clk 0:02:55]}  c6 {[%clk 0:02:56]} 14. O-O {[%clk 0:02:50]}  d5 {[%clk 0:02:55]} 15. bxc6 {[%clk 0:02:50]}  bxc6 {[%clk 0:02:56]} 16. cxd5 {[%clk 0:02:50]}  cxd5 {[%clk 0:02:57]} 17. Qb3 {[%clk 0:02:47]}  Ra5 {[%clk 0:02:56]} 18. Ba3 {[%clk 0:02:38]}  Nc5 {[%clk 0:02:52]} 19. Bxc5 {[%clk 0:02:28]}  Rxc5 {[%clk 0:02:52]} 20. d4 {[%clk 0:02:28]}  exd4 {[%clk 0:02:49]} 21. exd4 {[%clk 0:02:29]}  Ra5 {[%clk 0:02:48]} 22. Nf4 {[%clk 0:02:18]}  Ba6 {[%clk 0:02:47]} 23. Rfe1 {[%clk 0:01:59]}  Bc4 {[%clk 0:02:46]} 24. Qd1 {[%clk 0:01:38]}  Qd7 {[%clk 0:02:38]} 25. Bh3 {[%clk 0:01:26]}  Qa7 {[%clk 0:02:33]} 26. Nce2 {[%clk 0:01:09]}  Nc6 {[%clk 0:02:30]} 27. Qd2 {[%clk 0:00:44]}  Nxd4 {[%clk 0:02:16]} 28. Nxd4 {[%clk 0:00:43]}  Bxd4 {[%clk 0:02:17]} 29. Red1 {[%clk 0:00:38]}  Bc5 {[%clk 0:02:09]} 30. Rb2 {[%clk 0:00:14]}  Ra3 {[%clk 0:02:07]} 31. Kh2 {[%clk 0:00:13]}  Rf3 {[%clk 0:02:03]} 32. Bg2 {[%clk 0:00:03]}  Rxf2 {[%clk 0:02:02]} 33. Qc1 {[%clk 0:00:04]}  Be3 {[%clk 0:01:58]} 34. Qc3 {[%clk 0:00:03]}  Bxf4 {[%clk 0:01:50]} 35. gxf4 {[%clk 0:00:01]}  Rxf4 {[%clk 0:01:50]} 36. Qg3 {[%clk 0:00:02]}  Rg4 {[%clk 0:01:50]} 37. Qf3 {[%clk 0:00:02]}  Rxh4+ {[%clk 0:01:47]} 38. Bh3 {[%clk 0:00:02]}  Qe7 {[%clk 0:01:42]} 0-1


[Site "https://www.chess.com"]

[Event "Titled Tuesday Blitz September 27 Early 2022"]
[White "Lauridsen, Jesper Morch"]
[Black "Aloma Vidal, Robert"]
[WhiteFideId "1401890"]
[BlackFideId "2260409"]
[WhiteElo "2270"]
[BlackElo "2435"]
[Result "0-1"]
[Round "10"]
[TimeControl "180+1"]
[Date "2022.09.27"]
[WhiteClock "0:00:03"]
[BlackClock "0:00:39"]

1. e4 {[%clk 0:03:00]}  e5 {[%clk 0:03:00]} 2. d4 {[%clk 0:03:00]}  exd4 {[%clk 0:02:59]} 3. Qxd4 {[%clk 0:03:01]}  Nc6 {[%clk 0:02:58]} 4. Qe3 {[%clk 0:02:59]}  Nf6 {[%clk 0:02:59]} 5. Nc3 {[%clk 0:03:00]}  Be7 {[%clk 0:02:59]} 6. Bd2 {[%clk 0:02:39]}  d5 {[%clk 0:02:59]} 7. exd5 {[%clk 0:02:36]}  Nxd5 {[%clk 0:02:58]} 8. Nxd5 {[%clk 0:02:28]}  Qxd5 {[%clk 0:02:58]} 9. Nf3 {[%clk 0:02:06]}  O-O {[%clk 0:02:56]} 10. Bd3 {[%clk 0:02:00]}  Bc5 {[%clk 0:02:36]} 11. Qg5 {[%clk 0:01:52]}  Re8+ {[%clk 0:02:34]} 12. Kf1 {[%clk 0:01:46]}  Be6 {[%clk 0:02:27]} 13. Re1 {[%clk 0:01:28]}  h6 {[%clk 0:02:18]} 14. Qh4 {[%clk 0:01:19]}  Bf5 {[%clk 0:02:10]} 15. Bc4 {[%clk 0:01:08]}  Qd6 {[%clk 0:01:43]} 16. Bf4 {[%clk 0:00:58]}  Rxe1+ {[%clk 0:01:39]} 17. Nxe1 {[%clk 0:00:57]}  Qd1 {[%clk 0:01:31]} 18. Qg3 {[%clk 0:00:17]}  Re8 {[%clk 0:01:28]} 19. f3 {[%clk 0:00:16]}  Nd4 {[%clk 0:01:08]} 20. Bxh6 {[%clk 0:00:14]}  Rxe1+ {[%clk 0:01:06]} 21. Qxe1 {[%clk 0:00:13]}  Qxe1+ {[%clk 0:01:05]} 22. Kxe1 {[%clk 0:00:14]}  Nxc2+ {[%clk 0:01:02]} 23. Kd2 {[%clk 0:00:13]}  gxh6 {[%clk 0:01:01]} 24. g4 {[%clk 0:00:10]}  Bg6 {[%clk 0:01:01]} 25. h4 {[%clk 0:00:09]}  Bb4+ {[%clk 0:00:53]} 26. Kc1 {[%clk 0:00:08]}  Ne3 {[%clk 0:00:49]} 27. Bb3 {[%clk 0:00:06]}  Bd6 {[%clk 0:00:41]} 28. h5 {[%clk 0:00:06]}  Bh7 {[%clk 0:00:41]} 29. Kd2 {[%clk 0:00:05]}  Bf4 {[%clk 0:00:41]} 30. Kc3 {[%clk 0:00:05]}  Kg7 {[%clk 0:00:40]} 31. Re1 {[%clk 0:00:05]}  c5 {[%clk 0:00:38]} 32. a3 {[%clk 0:00:04]}  b5 {[%clk 0:00:38]} 33. Ba2 {[%clk 0:00:03]}  a5 {[%clk 0:00:38]} 34. b4 {[%clk 0:00:02]}  axb4+ {[%clk 0:00:38]} 35. axb4 {[%clk 0:00:03]}  cxb4+ {[%clk 0:00:39]} 36. Kxb4 {[%clk 0:00:03]}  Nc2+ {[%clk 0:00:39]} 0-1


[Site "https://www.chess.com"]

[Event "Titled Tuesday Blitz September 27 Early 2022"]
[White "Lazavik, Denis"]
[Black "Hansen, Eric"]
[WhiteFideId "13515110"]
[BlackFideId "2606771"]
[WhiteElo "2437"]
[BlackElo "2568"]
[Result "1-0"]
[Round "10"]
[TimeControl "180+1"]
[Date "2022.09.27"]
[WhiteClock "0:00:07"]
[BlackClock "0:00:01"]

1. d4 {[%clk 0:03:00]}  Nf6 {[%clk 0:03:00]} 2. c4 {[%clk 0:03:01]}  e6 {[%clk 0:03:00]} 3. Nf3 {[%clk 0:03:01]}  b6 {[%clk 0:03:00]} 4. g3 {[%clk 0:03:01]}  Bb4+ {[%clk 0:03:00]} 5. Bd2 {[%clk 0:03:01]}  Be7 {[%clk 0:03:01]} 6. Bg2 {[%clk 0:03:00]}  c6 {[%clk 0:03:01]} 7. O-O {[%clk 0:02:55]}  O-O {[%clk 0:03:01]} 8. Bc3 {[%clk 0:02:55]}  d5 {[%clk 0:03:01]} 9. Nbd2 {[%clk 0:02:55]}  Ba6 {[%clk 0:02:50]} 10. b3 {[%clk 0:02:55]}  Nbd7 {[%clk 0:02:49]} 11. Qc2 {[%clk 0:02:55]}  c5 {[%clk 0:02:42]} 12. dxc5 {[%clk 0:02:43]}  Nxc5 {[%clk 0:02:33]} 13. Rfd1 {[%clk 0:02:40]}  Rc8 {[%clk 0:02:33]} 14. Rac1 {[%clk 0:02:28]}  Qe8 {[%clk 0:02:29]} 15. Ne5 {[%clk 0:02:26]}  Bb7 {[%clk 0:01:59]} 16. Qb2 {[%clk 0:02:12]}  b5 {[%clk 0:01:46]} 17. cxd5 {[%clk 0:02:05]}  Bxd5 {[%clk 0:01:44]} 18. Bd4 {[%clk 0:01:59]}  a6 {[%clk 0:01:22]} 19. Bxd5 {[%clk 0:01:29]}  Nxd5 {[%clk 0:01:21]} 20. Bxc5 {[%clk 0:01:14]}  Rxc5 {[%clk 0:01:12]} 21. Ne4 {[%clk 0:01:11]}  Rxc1 {[%clk 0:01:11]} 22. Rxc1 {[%clk 0:01:12]}  f5 {[%clk 0:00:50]} 23. Nc5 {[%clk 0:01:05]}  Bf6 {[%clk 0:00:50]} 24. Ncd3 {[%clk 0:01:01]}  Qb8 {[%clk 0:00:44]} 25. Rc6 {[%clk 0:00:57]}  Re8 {[%clk 0:00:38]} 26. Nd7 {[%clk 0:00:22]}  Qb7 {[%clk 0:00:16]} 27. Nxf6+ {[%clk 0:00:20]}  Nxf6 {[%clk 0:00:17]} 28. Qc2 {[%clk 0:00:19]}  Nd5 {[%clk 0:00:16]} 29. Qc5 {[%clk 0:00:15]}  h6 {[%clk 0:00:09]} 30. b4 {[%clk 0:00:14]}  Kh7 {[%clk 0:00:05]} 31. Qd6 {[%clk 0:00:14]}  Nf6 {[%clk 0:00:02]} 32. Rc7 {[%clk 0:00:13]}  Qe4 {[%clk 0:00:02]} 33. Qe5 {[%clk 0:00:10]}  Kg8 {[%clk 0:00:02]} 34. Qxe4 {[%clk 0:00:09]}  Nxe4 {[%clk 0:00:02]} 35. Rc6 {[%clk 0:00:10]}  e5 {[%clk 0:00:01]} 36. f3 {[%clk 0:00:10]}  Nd2 {[%clk 0:00:01]} 37. Kf2 {[%clk 0:00:07]}  e4 {[%clk 0:00:02]} 38. Nc5 {[%clk 0:00:07]}  exf3 {[%clk 0:00:01]} 39. exf3 {[%clk 0:00:08]}  f4 {[%clk 0:00:01]} 40. gxf4 {[%clk 0:00:08]}  Nc4 {[%clk 0:00:01]} 41. Rxa6 {[%clk 0:00:08]}  Nb2 {[%clk 0:00:01]} 42. Ne4 {[%clk 0:00:07]} 1-0


[Site "https://www.chess.com"]

[Event "Titled Tuesday Blitz September 27 Early 2022"]
[White "Lewtak, Damian"]
[Black "Sethuraman, S.P."]
[WhiteFideId "1141724"]
[BlackFideId "5021596"]
[WhiteElo "2329"]
[BlackElo "2425"]
[Result "1/2-1/2"]
[Round "10"]
[TimeControl "180+1"]
[Date "2022.09.27"]
[WhiteClock "0:00:03"]
[BlackClock "0:00:06"]

1. e4 {[%clk 0:03:00]}  c5 {[%clk 0:03:00]} 2. Nf3 {[%clk 0:03:00]}  d6 {[%clk 0:03:00]} 3. Bb5+ {[%clk 0:02:59]}  Nd7 {[%clk 0:02:59]} 4. O-O {[%clk 0:02:58]}  a6 {[%clk 0:02:58]} 5. Bd3 {[%clk 0:02:58]}  b5 {[%clk 0:02:57]} 6. c4 {[%clk 0:02:58]}  b4 {[%clk 0:02:50]} 7. a3 {[%clk 0:02:58]}  Rb8 {[%clk 0:02:40]} 8. axb4 {[%clk 0:02:56]}  Rxb4 {[%clk 0:02:41]} 9. Nc3 {[%clk 0:02:53]}  Ngf6 {[%clk 0:02:40]} 10. b3 {[%clk 0:02:47]}  e5 {[%clk 0:02:24]} 11. Nd5 {[%clk 0:02:46]}  Nxd5 {[%clk 0:02:23]} 12. cxd5 {[%clk 0:02:43]}  Be7 {[%clk 0:02:11]} 13. Bc4 {[%clk 0:02:42]}  O-O {[%clk 0:02:04]} 14. d3 {[%clk 0:02:41]}  Rb8 {[%clk 0:01:40]} 15. Bd2 {[%clk 0:02:24]}  f5 {[%clk 0:01:28]} 16. exf5 {[%clk 0:02:24]}  Nb6 {[%clk 0:01:27]} 17. Ba5 {[%clk 0:02:18]}  Bxf5 {[%clk 0:01:26]} 18. Nd2 {[%clk 0:02:13]}  Qe8 {[%clk 0:01:19]} 19. Bxb6 {[%clk 0:02:09]}  Rxb6 {[%clk 0:01:20]} 20. Ne4 {[%clk 0:02:05]}  Qg6 {[%clk 0:01:20]} 21. Qe2 {[%clk 0:02:05]}  h5 {[%clk 0:01:14]} 22. Kh1 {[%clk 0:01:57]}  h4 {[%clk 0:01:13]} 23. h3 {[%clk 0:01:57]}  Qh6 {[%clk 0:00:55]} 24. Ra2 {[%clk 0:01:49]}  Qf4 {[%clk 0:00:54]} 25. Rfa1 {[%clk 0:01:41]}  a5 {[%clk 0:00:49]} 26. f3 {[%clk 0:01:37]}  Bxe4 {[%clk 0:00:45]} 27. dxe4 {[%clk 0:01:36]}  Qg3 {[%clk 0:00:41]} 28. Qe1 {[%clk 0:01:25]}  Qxe1+ {[%clk 0:00:39]} 29. Rxe1 {[%clk 0:01:26]}  Bd8 {[%clk 0:00:35]} 30. Kg1 {[%clk 0:01:18]}  Rb4 {[%clk 0:00:35]} 31. Kf2 {[%clk 0:01:13]}  Bb6 {[%clk 0:00:35]} 32. Ke2 {[%clk 0:01:10]}  Rf6 {[%clk 0:00:26]} 33. Kd3 {[%clk 0:01:10]}  Rg6 {[%clk 0:00:27]} 34. Ree2 {[%clk 0:01:09]}  Rf6 {[%clk 0:00:25]} 35. Ra4 {[%clk 0:01:06]}  Rf8 {[%clk 0:00:21]} 36. Rea2 {[%clk 0:01:03]}  Rc8 {[%clk 0:00:19]} 37. Kc3 {[%clk 0:00:59]}  Rc7 {[%clk 0:00:18]} 38. Kd3 {[%clk 0:00:59]}  Kh7 {[%clk 0:00:19]} 39. Ke3 {[%clk 0:00:58]}  Kh6 {[%clk 0:00:19]} 40. f4 {[%clk 0:00:52]}  exf4+ {[%clk 0:00:16]} 41. Kxf4 {[%clk 0:00:52]}  Rf7+ {[%clk 0:00:16]} 42. Ke3 {[%clk 0:00:46]}  Re7 {[%clk 0:00:14]} 43. Rf2 {[%clk 0:00:39]}  Re5 {[%clk 0:00:11]} 44. Rf7 {[%clk 0:00:36]}  Rg5 {[%clk 0:00:10]} 45. Kf2 {[%clk 0:00:30]}  Rg6 {[%clk 0:00:07]} 46. Rf4 {[%clk 0:00:21]}  Rxa4 {[%clk 0:00:05]} 47. Rxh4+ {[%clk 0:00:11]}  Kg5 {[%clk 0:00:05]} 48. Rg4+ {[%clk 0:00:12]}  Kh5 {[%clk 0:00:05]} 49. bxa4 {[%clk 0:00:09]}  Rxg4 {[%clk 0:00:05]} 50. Be2 {[%clk 0:00:06]}  Kg5 {[%clk 0:00:05]} 51. Bxg4 {[%clk 0:00:03]}  Kf4 {[%clk 0:00:06]} 52. Bf3 {[%clk 0:00:03]}  c4+ {[%clk 0:00:06]} 53. Ke2 {[%clk 0:00:04]}  c3 {[%clk 0:00:06]} 54. Kd3 {[%clk 0:00:04]}  Bd4 {[%clk 0:00:06]} 55. Kc2 {[%clk 0:00:03]}  Be5 {[%clk 0:00:06]} 56. Kd3 {[%clk 0:00:03]}  Bd4 {[%clk 0:00:06]} 57. Kc2 {[%clk 0:00:03]}  Be5 {[%clk 0:00:06]} 58. Kd3 {[%clk 0:00:03]}  Bd4 {[%clk 0:00:06]} 1/2-1/2


[Site "https://www.chess.com"]

[Event "Titled Tuesday Blitz September 27 Early 2022"]
[White "Ljukin, Sergei"]
[Black "Aizpurua, Patrick Emilio"]
[WhiteFideId "14102200"]
[BlackFideId "6600522"]
[WhiteElo "2312"]
[BlackElo "2378"]
[Result "0-1"]
[Round "10"]
[TimeControl "180+1"]
[Date "2022.09.27"]
[WhiteClock "0:00:54"]
[BlackClock "0:01:04"]

1. e4 {[%clk 0:03:00]}  d6 {[%clk 0:03:00]} 2. d4 {[%clk 0:02:59]}  Nf6 {[%clk 0:02:59]} 3. Nc3 {[%clk 0:03:00]}  Nbd7 {[%clk 0:02:58]} 4. f4 {[%clk 0:02:59]}  c6 {[%clk 0:02:55]} 5. e5 {[%clk 0:02:58]}  Nd5 {[%clk 0:02:52]} 6. Nxd5 {[%clk 0:02:58]}  cxd5 {[%clk 0:02:53]} 7. Nf3 {[%clk 0:02:55]}  e6 {[%clk 0:02:51]} 8. Bd3 {[%clk 0:02:55]}  Be7 {[%clk 0:02:49]} 9. O-O {[%clk 0:02:54]}  Qb6 {[%clk 0:02:42]} 10. Kh1 {[%clk 0:02:46]}  g6 {[%clk 0:02:39]} 11. b3 {[%clk 0:02:37]}  Nb8 {[%clk 0:02:31]} 12. c4 {[%clk 0:02:35]}  dxc4 {[%clk 0:02:30]} 13. bxc4 {[%clk 0:02:35]}  dxe5 {[%clk 0:02:28]} 14. fxe5 {[%clk 0:02:32]}  Qa5 {[%clk 0:02:04]} 15. Bh6 {[%clk 0:02:28]}  Nc6 {[%clk 0:02:01]} 16. d5 {[%clk 0:02:22]}  exd5 {[%clk 0:02:01]} 17. cxd5 {[%clk 0:02:22]}  Qxd5 {[%clk 0:01:57]} 18. Ng5 {[%clk 0:01:48]}  Bxg5 {[%clk 0:01:50]} 19. Bxg5 {[%clk 0:01:46]}  O-O {[%clk 0:01:46]} 20. Bf6 {[%clk 0:01:11]}  Nxe5 {[%clk 0:01:36]} 21. Qd2 {[%clk 0:01:08]}  Ng4 {[%clk 0:01:22]} 22. Bb2 {[%clk 0:01:08]}  Rd8 {[%clk 0:01:09]} 23. Qc3 {[%clk 0:01:05]}  Qe5 {[%clk 0:01:05]} 24. Qb3 {[%clk 0:00:54]}  Qxh2# {[%clk 0:01:04]} 0-1


[Site "https://www.chess.com"]

[Event "Titled Tuesday Blitz September 27 Early 2022"]
[White "Malyi, Viacheslav"]
[Black "Avazkhonov, Alikhon"]
[WhiteFideId "14123983"]
[BlackFideId "14208504"]
[WhiteElo "2190"]
[BlackElo "1739"]
[Result "1-0"]
[Round "10"]
[TimeControl "180+1"]
[Date "2022.09.27"]
[WhiteClock "0:00:14"]
[BlackClock "0:00:04"]

1. e4 {[%clk 0:03:00]}  c5 {[%clk 0:02:58]} 2. Nf3 {[%clk 0:03:00]}  d6 {[%clk 0:02:58]} 3. d4 {[%clk 0:03:01]}  cxd4 {[%clk 0:02:59]} 4. Nxd4 {[%clk 0:03:02]}  Nf6 {[%clk 0:02:59]} 5. Nc3 {[%clk 0:03:02]}  a6 {[%clk 0:02:59]} 6. Rg1 {[%clk 0:03:03]}  e5 {[%clk 0:02:56]} 7. Nb3 {[%clk 0:03:03]}  Be6 {[%clk 0:02:52]} 8. g4 {[%clk 0:03:03]}  b5 {[%clk 0:02:33]} 9. g5 {[%clk 0:03:00]}  Nfd7 {[%clk 0:02:33]} 10. Be3 {[%clk 0:02:59]}  Nc6 {[%clk 0:02:33]} 11. Nd5 {[%clk 0:02:56]}  Nc5 {[%clk 0:02:31]} 12. f3 {[%clk 0:02:45]}  Be7 {[%clk 0:02:15]} 13. Qd2 {[%clk 0:02:42]}  O-O {[%clk 0:02:14]} 14. O-O-O {[%clk 0:02:35]}  Bxd5 {[%clk 0:01:51]} 15. Qxd5 {[%clk 0:02:04]}  Nb4 {[%clk 0:01:37]} 16. Qd2 {[%clk 0:02:03]}  Nxb3+ {[%clk 0:01:37]} 17. cxb3 {[%clk 0:02:00]}  d5 {[%clk 0:01:31]} 18. exd5 {[%clk 0:01:38]}  Rc8+ {[%clk 0:00:49]} 19. Kb1 {[%clk 0:01:35]}  Rc2 {[%clk 0:00:50]} 20. Qe1 {[%clk 0:01:29]}  Qc7 {[%clk 0:00:49]} 21. Rc1 {[%clk 0:01:14]}  Rc8 {[%clk 0:00:39]} 22. Bh3 {[%clk 0:00:58]}  Nd3 {[%clk 0:00:24]} 23. Bxc8 {[%clk 0:00:31]}  Nxe1 {[%clk 0:00:17]} 24. Rgxe1 {[%clk 0:00:31]}  Rxc1+ {[%clk 0:00:13]} 25. Rxc1 {[%clk 0:00:31]}  Qd6 {[%clk 0:00:12]} 26. Bb7 {[%clk 0:00:21]}  g6 {[%clk 0:00:11]} 27. a3 {[%clk 0:00:10]}  Qd7 {[%clk 0:00:10]} 28. Bc6 {[%clk 0:00:08]}  Qf5+ {[%clk 0:00:10]} 29. Ka2 {[%clk 0:00:09]}  Bd6 {[%clk 0:00:10]} 30. Bc5 {[%clk 0:00:08]}  Bxc5 {[%clk 0:00:08]} 31. Rxc5 {[%clk 0:00:09]}  Qd3 {[%clk 0:00:08]} 32. Rc3 {[%clk 0:00:08]}  Qd4 {[%clk 0:00:07]} 33. Bb7 {[%clk 0:00:06]}  Kf8 {[%clk 0:00:06]} 34. Rc7 {[%clk 0:00:06]}  a5 {[%clk 0:00:05]} 35. Bc6 {[%clk 0:00:05]}  a4 {[%clk 0:00:04]} 36. bxa4 {[%clk 0:00:03]}  bxa4 {[%clk 0:00:05]} 37. Rc8+ {[%clk 0:00:04]}  Ke7 {[%clk 0:00:04]} 38. Re8+ {[%clk 0:00:03]}  Kd6 {[%clk 0:00:05]} 39. Rd8+ {[%clk 0:00:04]}  Kc7 {[%clk 0:00:06]} 40. Rd7+ {[%clk 0:00:04]}  Kb6 {[%clk 0:00:06]} 41. Rb7+ {[%clk 0:00:05]}  Kc5 {[%clk 0:00:07]} 42. Rb4 {[%clk 0:00:05]}  Qe3 {[%clk 0:00:04]} 43. Rb5+ {[%clk 0:00:06]}  Kd6 {[%clk 0:00:04]} 44. Rb7 {[%clk 0:00:05]}  Qxf3 {[%clk 0:00:04]} 45. Rd7+ {[%clk 0:00:05]}  Kc5 {[%clk 0:00:05]} 46. Rb7 {[%clk 0:00:05]}  Qd3 {[%clk 0:00:04]} 47. Rb5+ {[%clk 0:00:05]}  Qxb5 {[%clk 0:00:04]} 48. Bxb5 {[%clk 0:00:06]}  Kxb5 {[%clk 0:00:05]} 49. b3 {[%clk 0:00:06]}  axb3+ {[%clk 0:00:04]} 50. Kxb3 {[%clk 0:00:07]}  Kc5 {[%clk 0:00:05]} 51. a4 {[%clk 0:00:07]}  Kxd5 {[%clk 0:00:06]} 52. a5 {[%clk 0:00:07]}  Kc5 {[%clk 0:00:04]} 53. Kc3 {[%clk 0:00:08]}  Kb5 {[%clk 0:00:04]} 54. Kd3 {[%clk 0:00:09]}  Kxa5 {[%clk 0:00:04]} 55. Ke4 {[%clk 0:00:09]}  Kb6 {[%clk 0:00:03]} 56. Kxe5 {[%clk 0:00:10]}  Kc5 {[%clk 0:00:03]} 57. Kf6 {[%clk 0:00:10]}  Kd5 {[%clk 0:00:02]} 58. Kxf7 {[%clk 0:00:11]}  Ke5 {[%clk 0:00:03]} 59. Kg7 {[%clk 0:00:11]}  Kf5 {[%clk 0:00:04]} 60. h4 {[%clk 0:00:11]}  Kg4 {[%clk 0:00:04]} 61. Kxh7 {[%clk 0:00:12]}  Kh5 {[%clk 0:00:02]} 62. Kg7 {[%clk 0:00:12]}  Kxh4 {[%clk 0:00:03]} 63. Kxg6 {[%clk 0:00:13]}  Kg4 {[%clk 0:00:03]} 64. Kh6 {[%clk 0:00:13]}  Kf5 {[%clk 0:00:03]} 65. g6 {[%clk 0:00:13]}  Kf6 {[%clk 0:00:04]} 66. Kh7 {[%clk 0:00:14]} 1-0


[Site "https://www.chess.com"]

[Event "Titled Tuesday Blitz September 27 Early 2022"]
[White "Martin Duque, Jesus"]
[Black "Umarov, Sabir"]
[WhiteFideId "2208954"]
[BlackFideId "14200538"]
[WhiteElo "2258"]
[BlackElo "2440"]
[Result "1-0"]
[Round "10"]
[TimeControl "180+1"]
[Date "2022.09.27"]
[WhiteClock "0:01:25"]
[BlackClock "0:00:10"]

1. Nf3 {[%clk 0:03:00]}  g6 {[%clk 0:02:58]} 2. d4 {[%clk 0:03:00]}  Bg7 {[%clk 0:02:58]} 3. e3 {[%clk 0:03:00]}  c6 {[%clk 0:02:56]} 4. Be2 {[%clk 0:02:58]}  d6 {[%clk 0:02:54]} 5. O-O {[%clk 0:02:57]}  f5 {[%clk 0:02:54]} 6. c4 {[%clk 0:02:56]}  Nf6 {[%clk 0:02:54]} 7. Nc3 {[%clk 0:02:56]}  O-O {[%clk 0:02:54]} 8. b3 {[%clk 0:02:51]}  Qe8 {[%clk 0:02:50]} 9. Ba3 {[%clk 0:02:45]}  h6 {[%clk 0:02:36]} 10. Qc2 {[%clk 0:02:44]}  g5 {[%clk 0:02:36]} 11. Bd3 {[%clk 0:02:43]}  f4 {[%clk 0:02:21]} 12. exf4 {[%clk 0:02:40]}  gxf4 {[%clk 0:02:21]} 13. Rfe1 {[%clk 0:02:39]}  Bg4 {[%clk 0:02:19]} 14. Bg6 {[%clk 0:02:37]}  Qd7 {[%clk 0:02:17]} 15. Nh4 {[%clk 0:02:37]}  Na6 {[%clk 0:02:11]} 16. Nf5 {[%clk 0:02:32]}  Rae8 {[%clk 0:01:14]} 17. Bxe8 {[%clk 0:02:27]}  Qxf5 {[%clk 0:01:14]} 18. Qxf5 {[%clk 0:02:25]}  Bxf5 {[%clk 0:01:14]} 19. Rxe7 {[%clk 0:02:21]}  Rxe8 {[%clk 0:01:12]} 20. Bxd6 {[%clk 0:02:19]}  Rxe7 {[%clk 0:01:09]} 21. Bxe7 {[%clk 0:02:20]}  Ne4 {[%clk 0:01:07]} 22. Nxe4 {[%clk 0:02:18]}  Bxe4 {[%clk 0:01:08]} 23. Re1 {[%clk 0:02:16]}  Bf5 {[%clk 0:01:01]} 24. d5 {[%clk 0:02:16]}  Kf7 {[%clk 0:00:53]} 25. d6 {[%clk 0:02:08]}  Nc5 {[%clk 0:00:47]} 26. h3 {[%clk 0:01:54]}  Nd3 {[%clk 0:00:38]} 27. Rd1 {[%clk 0:01:51]}  Bd4 {[%clk 0:00:38]} 28. Rd2 {[%clk 0:01:49]}  Bc5 {[%clk 0:00:32]} 29. Kf1 {[%clk 0:01:44]}  Ke6 {[%clk 0:00:30]} 30. Bf8 {[%clk 0:01:43]}  Bxd6 {[%clk 0:00:28]} 31. Bxd6 {[%clk 0:01:41]}  Kxd6 {[%clk 0:00:28]} 32. Ke2 {[%clk 0:01:42]}  Kc5 {[%clk 0:00:11]} 33. Rxd3 {[%clk 0:01:42]}  Bxd3+ {[%clk 0:00:10]} 34. Kxd3 {[%clk 0:01:43]}  Kb4 {[%clk 0:00:10]} 35. g4 {[%clk 0:01:38]}  fxg3 {[%clk 0:00:10]} 36. fxg3 {[%clk 0:01:39]}  Ka3 {[%clk 0:00:11]} 37. g4 {[%clk 0:01:34]}  Kxa2 {[%clk 0:00:12]} 38. b4 {[%clk 0:01:25]}  Kb3 {[%clk 0:00:10]} 39. h4 {[%clk 0:01:25]} 1-0


[Site "https://www.chess.com"]